bitfinex/quotes_SOLUSD_20250308
["timestamp","ask_amount","ask_price","bid_price","bid_amount"]
[1741454485075,36.93674597,137.45,137.33,5.8253]
[1741454485278,42.75724597,137.45,137.33,6.91681815]
[1741454485775,52.47806551,137.4,137.34,20.0]
[1741454485989,52.47806551,137.41,137.35,52.47806551]
[1741454486183,52.47806551,137.41,137.36,52.47806551]
[1741454486601,36.1036403,137.44,137.36,52.47806551]
[1741454486892,36.24037879,137.42,137.37,52.47806551]
[1741454487104,94.5400443,137.42,137.36,52.47806551]
[1741454487288,52.47806551,137.4,137.34,52.47806551]
[1741454487489,52.47806551,137.4,137.34,20.0]
[1741454487688,88.4793833,137.4,137.34,72.47806551]
[1741454487888,52.47806551,137.39,137.33,52.47806551]
[1741454488220,88.4793833,137.4,137.34,52.47806551]
[1741454488419,36.1036403,137.44,137.36,52.47806551]
[1741454488596,36.01964803,137.41,137.36,52.47806551]
[1741454488793,52.47806551,137.39,137.33,52.47806551]
[1741454489204,41.82371779,137.4,137.28,1.09176814]
[1741454489404,52.47806551,137.33,137.25,5.8287]
[1741454489583,52.47806551,137.33,137.27,52.47806551]
[1741454490121,54.18164803,137.41,137.32,52.47806551]
[1741454490295,52.47806551,137.4,137.34,52.47806551]
[1741454490491,36.00131779,137.4,137.35,52.47806551]
[1741454490699,58.30006551,137.41,137.35,52.47806551]
[1741454491319,52.47806551,137.4,137.34,52.47806551]
[1741454492027,52.47806551,137.39,137.32,52.47806551]
[1741454492190,52.47806551,137.39,137.36,10.95542587]
[1741454492191,1.09364675,137.39,137.36,10.95542587]
[1741454492390,1.09364675,137.4,137.36,10.95542587]
[1741454492792,1.09364675,137.4,137.31,10.95542587]
[1741454493019,20.3828,137.37,137.31,10.95542587]
[1741454493198,52.47806551,137.32,137.31,10.95542587]
[1741454493600,52.47806551,137.32,137.25,52.47806551]
[1741454493819,52.47806551,137.32,137.26,52.47806551]
[1741454494028,52.47806551,137.33,137.27,52.47806551]
[1741454494326,52.47806551,137.3,137.24,52.47806551]
[1741454494492,52.47806551,137.29,137.23,52.47806551]
[1741454494693,52.47806551,137.27,137.22,52.47806551]
[1741454494920,1.09364675,137.33,137.2,18.64964886]
[1741454495122,20.3828,137.37,137.28,52.47806551]
[1741454495301,52.47806551,137.32,137.26,52.47806551]
[1741454495508,52.47806551,137.29,137.23,52.47806551]
[1741454495707,52.47806551,137.3,137.24,52.47806551]
[1741454496215,173.78186974,137.35,137.21,52.47806551]
[1741454496216,52.47806551,137.27,137.21,52.47806551]
[1741454497027,52.47806551,137.26,137.2,52.47806551]
[1741454497339,52.47806551,137.24,137.19,52.47806551]
[1741454497826,52.47806551,137.24,137.18,72.47806551]
[1741454498006,52.47806551,137.24,137.19,52.47806551]
[1741454498207,5.8283,137.26,137.14,81.3]
[1741454498208,52.47806551,137.22,137.16,52.47806551]
[1741454498421,52.47806551,137.23,137.17,52.47806551]
[1741454499027,52.47806551,137.25,137.19,52.47806551]
[1741454499229,5.8262,137.31,137.23,52.47806551]
[1741454499411,58.30426551,137.31,137.25,52.47806551]
[1741454499611,52.47806551,137.3,137.24,52.47806551]
[1741454499834,52.47806551,137.29,137.23,52.47806551]
[1741454500017,52.47806551,137.26,137.2,52.47806551]
[1741454501333,58.30666551,137.26,137.2,52.47806551]
[1741454501541,52.47806551,137.25,137.19,52.47806551]
[1741454501911,52.47806551,137.24,137.18,64.61806551]
[1741454502113,52.47806551,137.24,137.18,52.47806551]
[1741454502303,52.47806551,137.25,137.19,52.47806551]
[1741454502508,52.47806551,137.24,137.18,52.47806551]
[1741454503031,52.47806551,137.25,137.19,52.47806551]
[1741454503632,52.47806551,137.27,137.2,52.47806551]
[1741454503810,52.47806551,137.25,137.19,52.47806551]
[1741454504008,52.47806551,137.25,137.18,52.47806551]
[1741454504334,52.47806551,137.26,137.2,52.47806551]
[1741454505229,52.47806551,137.25,137.19,52.51106551]
[1741454505530,52.47806551,137.24,137.19,0.033]
[1741454505904,1.09364675,137.27,137.19,58.34216551]
[1741454506107,173.78186974,137.33,137.24,52.47806551]
[1741454506329,52.47806551,137.31,137.25,52.47806551]
[1741454506542,52.47806551,137.3,137.2,52.47806551]
[1741454506829,52.47806551,137.29,137.23,52.47806551]
[1741454507032,52.47806551,137.3,137.24,52.47806551]
[1741454507339,52.47806551,137.3,137.24,58.30696551]
[1741454507508,52.47806551,137.31,137.25,52.47806551]
[1741454508032,39.47551649,137.33,137.26,52.47806551]
[1741454508033,38.38186974,137.33,137.26,52.47806551]
[1741454508332,52.50806551,137.32,137.26,52.47806551]
[1741454509435,52.50806551,137.32,137.27,5.8279]
[1741454509937,52.47806551,137.31,137.27,5.8279]
[1741454510519,52.50806551,137.32,137.27,5.8279]
[1741454510716,52.50806551,137.32,137.27,58.30596551]
[1741454510717,0.03,137.32,137.27,58.30596551]
[1741454511415,0.03,137.32,137.27,5.8279]
[1741454511416,52.50806551,137.32,137.27,5.8279]
[1741454511740,0.03,137.32,137.27,58.30596551]
[1741454512146,0.03,137.32,137.27,72.87576551]
[1741454512718,0.03,137.32,137.28,52.47806551]
[1741454513124,0.03,137.32,137.27,72.87576551]
[1741454513319,0.03,137.32,137.29,72.87276551]
[1741454514226,0.03,137.32,137.31,52.47806551]
[1741454514436,157.78,137.38,137.31,52.47806551]
[1741454514634,52.47806551,137.39,137.32,52.47806551]
[1741454514835,52.47806551,137.38,137.29,49.5301]
[1741454515139,52.47806551,137.38,137.32,52.47806551]
[1741454515541,52.47806551,137.38,137.33,5.8253]
[1741454516448,176.25993525,137.41,137.28,19.74164094]
[1741454516449,52.47806551,137.34,137.28,58.30556551]
[1741454516621,52.47806551,137.33,137.28,5.8275]
[1741454517318,52.47806551,137.34,137.28,58.30556551]
[1741454518839,52.47806551,137.34,137.28,52.47806551]
[1741454519037,52.47806551,137.31,137.26,11.62]
[1741454519236,52.47806551,137.3,137.24,58.30716551]
[1741454519647,52.47806551,137.3,137.24,52.47806551]
[1741454519830,52.47806551,137.3,137.24,58.30706551]
[1741454520139,52.47806551,137.3,137.24,58.30696551]
[1741454520337,52.47806551,137.29,137.23,52.47806551]
[1741454520730,91.2253,137.33,137.22,52.47806551]
[1741454520731,52.47806551,137.28,137.22,52.47806551]
[1741454521331,52.47806551,137.25,137.19,52.51106551]
[1741454521729,52.47806551,137.26,137.2,52.47806551]
[1741454521932,52.47806551,137.27,137.21,52.47806551]
[1741454522140,52.47806551,137.26,137.2,52.47806551]
[1741454522337,52.47806551,137.25,137.19,58.34226551]
[1741454522530,52.47806551,137.24,137.19,0.033]
[1741454522849,52.47806551,137.21,137.19,0.033]
[1741454523321,52.47806551,137.22,137.19,0.033]
[1741454524236,52.47806551,137.23,137.19,0.033]
[1741454524635,52.47806551,137.24,137.19,0.033]
[1741454524841,90.85993525,137.26,137.2,52.47806551]
[1741454525134,52.47806551,137.26,137.2,52.47806551]
[1741454525343,96.6,137.28,137.21,52.47806551]
[1741454525533,52.47806551,137.27,137.21,52.47806551]
[1741454525933,52.47806551,137.27,137.21,58.30846551]
[1741454526244,11.2,137.28,137.19,52.51106551]
[1741454526245,52.47806551,137.24,137.19,52.51106551]
[1741454526427,52.47806551,137.25,137.19,52.51106551]
[1741454526634,17.0277,137.28,137.2,52.47806551]
[1741454526837,52.47806551,137.25,137.2,52.47806551]
[1741454527156,52.47806551,137.26,137.2,52.47806551]
[1741454527646,18.12134675,137.28,137.19,5.8642]
[1741454527647,52.47806551,137.28,137.22,52.47806551]
[1741454527822,52.47806551,137.28,137.23,52.47806551]
[1741454528027,85.4,137.31,137.23,58.30766551]
[1741454528028,52.47806551,137.29,137.23,58.30766551]
[1741454528242,137.87806551,137.31,137.25,52.47806551]
[1741454528433,52.47806551,137.31,137.25,52.47806551]
[1741454528846,52.47806551,137.32,137.26,52.47806551]
[1741454529032,52.47806551,137.33,137.27,52.47806551]
[1741454529756,38.38186974,137.34,137.28,52.47806551]
[1741454530059,157.82,137.35,137.29,58.30506551]
[1741454530060,210.29806551,137.35,137.29,58.30506551]
[1741454530556,52.47806551,137.36,137.3,52.47806551]
[1741454530758,52.47806551,137.37,137.31,52.47806551]
[1741454531836,52.47806551,137.35,137.29,52.47806551]
[1741454532036,0.03,137.32,137.28,52.47806551]
[1741454532830,0.03,137.32,137.3,52.47806551]
[1741454533070,0.03,137.32,137.31,52.47806551]
[1741454534745,0.03,137.32,137.31,76.95391437]
[1741454535140,0.03,137.32,137.31,52.47806551]
[1741454537250,0.03,137.32,137.3,72.47806551]
[1741454537756,0.03,137.32,137.31,52.47806551]
[1741454538159,0.03,137.32,137.27,10.92]
[1741454538366,52.50806551,137.32,137.27,10.92]
[1741454538658,52.50806551,137.32,137.24,20.26124886]
[1741454538659,52.47806551,137.31,137.25,52.47806551]
[1741454538852,0.03,137.32,137.28,52.47806551]
[1741454539166,0.03,137.32,137.26,52.47806551]
[1741454539468,0.03,137.32,137.27,34.87443438]
[1741454539652,0.03,137.32,137.29,34.87443438]
[1741454540045,0.03,137.32,137.3,34.87443438]
[1741454540237,0.03,137.32,137.31,34.87443438]
[1741454542058,0.03,137.32,137.3,54.87443438]
[1741454542261,0.03,137.32,137.29,34.87443438]
[1741454543371,0.03,137.32,137.28,34.87443438]
[1741454544253,0.03,137.32,137.29,34.87443438]
[1741454544969,0.03,137.32,137.28,34.90743438]
[1741454545467,0.03,137.32,137.28,52.32930045]
[1741454545656,0.03,137.32,137.29,52.29630045]
[1741454545856,0.03,137.32,137.28,72.32930045]
[1741454546365,0.03,137.32,137.29,52.29630045]
[1741454547272,0.03,137.32,137.3,52.29630045]
[1741454547456,0.03,137.32,137.31,52.29630045]
[1741454549572,0.03,137.32,137.31,58.12250045]
[1741454550663,0.03,137.32,137.3,52.29630045]
[1741454551052,0.03,137.32,137.31,52.29630045]
[1741454551755,0.03,137.32,137.28,0.033]
[1741454551954,0.03,137.32,137.28,52.32930045]
[1741454552155,0.03,137.32,137.3,52.29630045]
[1741454553474,0.03,137.32,137.29,78.12320045]
[1741454553658,0.03,137.32,137.29,52.29630045]
[1741454554258,52.29630045,137.3,137.28,0.033]
[1741454554458,0.03,137.32,137.19,52.32930045]
[1741454554459,53.3899472,137.29,137.19,52.32930045]
[1741454554668,52.29630045,137.24,137.19,0.033]
[1741454555189,52.29630045,137.25,137.19,52.32930045]
[1741454555490,52.29630045,137.24,137.19,52.32930045]
[1741454555683,52.29630045,137.24,137.19,0.033]
[1741454556153,52.29630045,137.24,137.19,52.32930045]
[1741454556353,58.12540045,137.25,137.19,52.32930045]
[1741454556590,52.29630045,137.26,137.2,52.29630045]
[1741454556759,58.12470045,137.26,137.2,52.29630045]
[1741454556961,52.29630045,137.25,137.2,52.29630045]
[1741454557178,5.8284,137.26,137.2,52.29630045]
[1741454557363,10.42,137.29,137.2,52.29630045]
[1741454557364,58.12500045,137.25,137.2,52.29630045]
[1741454557566,52.29630045,137.25,137.2,52.29630045]
[1741454557768,52.29630045,137.25,137.19,58.16050045]
[1741454558000,0.03,137.32,137.21,70.94594931]
[1741454558173,52.29630045,137.28,137.22,52.29630045]
[1741454558471,52.29630045,137.26,137.21,52.29630045]
[1741454558672,52.29630045,137.25,137.19,58.16050045]
[1741454559265,52.29630045,137.25,137.19,52.32930045]
[1741454559763,58.12470045,137.26,137.2,52.29630045]
[1741454559958,52.29630045,137.26,137.2,52.29630045]
[1741454560173,52.29630045,137.28,137.22,52.29630045]
[1741454560556,38.38186974,137.3,137.22,52.29630045]
[1741454560762,44.20846974,137.3,137.22,52.29630045]
[1741454560968,52.29630045,137.28,137.22,52.29630045]
[1741454561779,58.12380045,137.28,137.22,58.12630045]
[1741454561989,0.03,137.32,137.23,52.29630045]
[1741454562188,52.29630045,137.29,137.23,52.29630045]
[1741454562986,52.29630045,137.31,137.25,52.29630045]
[1741454563374,52.29630045,137.3,137.24,52.29630045]
[1741454564082,52.29630045,137.25,137.2,58.12720045]
[1741454564597,52.29630045,137.26,137.21,52.29630045]
[1741454565383,34.9001226,137.26,137.2,34.9001226]
[1741454566192,20.3932,137.3,137.2,34.9001226]
[1741454566193,34.9001226,137.25,137.2,34.9001226]
[1741454566699,0.03,137.32,137.24,34.9001226]
[1741454566872,40.7559226,137.32,137.26,34.9001226]
[1741454567206,40.7559226,137.32,137.24,10.04]
[1741454567207,59.89581649,137.32,137.22,10.04]
[1741454568508,34.9001226,137.28,137.22,50.7699226]
[1741454568898,34.9001226,137.27,137.22,50.7699226]
[1741454569293,34.9001226,137.27,137.22,50.8029226]
[1741454569595,34.9001226,137.28,137.22,50.8029226]
[1741454569787,34.9001226,137.27,137.22,50.8029226]
[1741454569987,34.9001226,137.28,137.22,50.8029226]
[1741454570206,34.9001226,137.27,137.22,50.8029226]
[1741454570686,5.8274,137.29,137.24,34.9001226]
[1741454570687,34.9001226,137.29,137.24,34.9001226]
[1741454570905,34.9001226,137.31,137.25,34.9001226]
[1741454571096,34.9001226,137.3,137.24,34.9001226]
[1741454571290,5.8559,137.32,137.22,30.4779]
[1741454571291,34.9001226,137.27,137.22,50.8029226]
[1741454571486,34.9001226,137.27,137.22,5.8628]
[1741454571689,34.9001226,137.26,137.22,5.8628]
[1741454571998,34.9001226,137.26,137.22,0.033]
[1741454572595,40.7285226,137.26,137.22,0.033]
[1741454572797,34.9001226,137.24,137.22,0.033]
[1741454573111,34.9001226,137.23,137.22,0.033]
[1741454574608,34.9001226,137.25,137.22,0.033]
[1741454575112,1.09364675,137.28,137.22,0.033]
[1741454575113,34.9001226,137.24,137.22,0.033]
[1741454575512,34.9001226,137.23,137.22,0.033]
[1741454576823,40.7297226,137.23,137.22,0.033]
[1741454577613,5.8266,137.3,137.22,34.9331226]
[1741454577927,34.9001226,137.27,137.22,0.033]
[1741454578093,34.9001226,137.26,137.22,0.033]
[1741454578826,34.9001226,137.25,137.22,0.033]
[1741454579123,34.9001226,137.23,137.22,0.033]
[1741454580809,40.7297226,137.23,137.22,0.033]
[1741454581024,34.9001226,137.23,137.22,0.033]
[1741454581532,40.7297226,137.23,137.22,0.033]
[1741454582817,5.8292,137.24,137.22,0.033]
[1741454583014,34.9001226,137.23,137.22,0.033]
[1741454584927,40.7297226,137.23,137.22,0.033]
[1741454587007,85.4,137.22,137.21,0.033]
[1741454587207,155.2002452,137.22,137.19,0.033]
[1741454587407,34.9001226,137.2,137.19,0.033]
[1741454588102,40.7310226,137.2,137.19,0.033]
[1741454588421,76.72479195,137.2,137.19,0.033]
[1741454588626,40.7310226,137.2,137.19,0.033]
[1741454589531,34.9001226,137.2,137.19,0.033]
[1741454590027,40.7310226,137.2,137.19,0.033]
[1741454590827,5.8309,137.2,137.19,0.033]
[1741454591128,40.7310226,137.2,137.19,0.033]
[1741454592302,5.83,137.22,137.19,0.033]
[1741454592518,34.9001226,137.2,137.19,0.033]
[1741454593704,34.9001226,137.21,137.19,0.033]
[1741454594100,34.9001226,137.22,137.19,0.033]
[1741454594606,85.4,137.26,137.21,34.9001226]
[1741454594908,81.3,137.27,137.21,34.9001226]
[1741454594909,34.9001226,137.27,137.21,34.9001226]
[1741454595111,34.9001226,137.27,137.22,34.9001226]
[1741454595504,34.9301226,137.28,137.23,34.9001226]
[1741454595734,0.03,137.28,137.23,34.9001226]
[1741454596933,34.9301226,137.28,137.23,34.9001226]
[1741454597107,34.9301226,137.28,137.2,6.4724]
[1741454597108,34.9001226,137.24,137.2,6.4724]
[1741454597314,34.9001226,137.24,137.19,0.033]
[1741454598836,34.9001226,137.24,137.19,34.9331226]
[1741454599849,34.9001226,137.25,137.19,34.9331226]
[1741454600043,34.9001226,137.26,137.2,34.9001226]
[1741454600345,34.9001226,137.25,137.19,34.9331226]
[1741454601051,40.7287226,137.26,137.2,34.9001226]
[1741454601831,40.7576226,137.28,137.22,34.9001226]
[1741454602552,34.9001226,137.27,137.22,34.9001226]
[1741454602741,40.7576226,137.28,137.22,34.9001226]
[1741454603051,34.9001226,137.25,137.19,34.9331226]
[1741454603956,34.9001226,137.24,137.19,0.033]
[1741454604262,20.3993,137.26,137.19,0.033]
[1741454604263,34.9001226,137.23,137.19,0.033]
[1741454604421,34.9001226,137.25,137.19,34.9331226]
[1741454604628,34.9001226,137.24,137.19,0.033]
[1741454604956,34.9001226,137.23,137.19,0.033]
[1741454605741,34.9001226,137.22,137.19,0.033]
[1741454606464,5.8292,137.24,137.19,0.033]
[1741454606465,34.9001226,137.21,137.19,0.033]
[1741454607144,34.9001226,137.2,137.19,0.033]
[1741454607535,35.99376935,137.2,137.19,0.033]
[1741454607850,34.9001226,137.2,137.19,0.033]
[1741454608162,69.8002452,137.2,137.19,0.033]
[1741454608846,116.2001226,137.2,137.19,0.033]
[1741454609044,156.9311452,137.2,137.19,0.033]
[1741454610742,75.6311452,137.2,137.19,0.033]
[1741454610954,76.72479195,137.2,137.19,0.033]
[1741454611653,141.30199195,137.2,137.14,0.033]
[1741454611852,34.9001226,137.15,137.14,0.033]
[1741454613957,34.9001226,137.16,137.14,0.033]
[1741454614138,14.9508,137.21,137.14,0.033]
[1741454614333,34.9001226,137.19,137.14,0.033]
[1741454614534,34.9001226,137.18,137.14,0.033]
[1741454614953,34.9001226,137.19,137.14,0.033]
[1741454615146,34.9001226,137.19,137.14,5.8664]
[1741454615344,91.2299,137.23,137.15,34.9001226]
[1741454615645,34.9001226,137.22,137.16,34.9001226]
[1741454615848,34.9001226,137.22,137.17,34.9001226]
[1741454616034,34.9001226,137.23,137.17,34.9001226]
[1741454616230,245.0489,137.25,137.17,34.9001226]
[1741454616231,34.9001226,137.22,137.17,34.9001226]
[1741454616469,6.92314675,137.24,137.16,34.9001226]
[1741454616642,34.9001226,137.22,137.16,34.9001226]
[1741454616837,34.9001226,137.21,137.16,34.9001226]
[1741454617033,34.9001226,137.2,137.15,34.9001226]
[1741454617238,34.9001226,137.2,137.14,5.8664]
[1741454617239,34.9001226,137.19,137.14,40.7665226]
[1741454617455,34.9001226,137.18,137.14,0.033]
[1741454617657,34.9001226,137.16,137.14,0.033]
[1741454617963,34.9001226,137.15,137.14,0.033]
[1741454619146,40.7331226,137.15,137.14,0.033]
[1741454619355,34.9001226,137.15,137.14,0.033]
[1741454620067,34.9001226,137.16,137.14,0.033]
[1741454620232,34.9001226,137.15,137.14,0.033]
[1741454620741,34.9001226,137.16,137.14,0.033]
[1741454621560,34.9001226,137.15,137.14,0.033]
[1741454622859,35.99376935,137.15,137.14,0.033]
[1741454623058,41.82676935,137.15,137.14,0.033]
[1741454623357,40.7331226,137.15,137.14,0.033]
[1741454626148,34.9001226,137.15,137.14,0.033]
[1741454626561,34.9001226,137.16,137.14,0.033]
[1741454626867,34.9001226,137.15,137.14,0.033]
[1741454628171,87.1322,137.17,137.14,0.033]
[1741454628464,34.9001226,137.16,137.14,0.033]
[1741454628875,34.9001226,137.15,137.14,0.033]
[1741454631974,34.9001226,137.16,137.14,0.033]
[1741454632355,6.95454675,137.2,137.14,0.033]
[1741454632672,34.9001226,137.18,137.14,0.033]
[1741454632976,34.9001226,137.17,137.14,0.033]
[1741454633357,34.9001226,137.16,137.14,0.033]
[1741454633563,34.9001226,137.15,137.14,0.033]
[1741454634483,34.9001226,137.17,137.14,0.033]
[1741454634772,34.9001226,137.16,137.14,0.033]
[1741454635154,34.9001226,137.17,137.14,0.033]
[1741454636177,34.9301226,137.19,137.14,0.033]
[1741454636693,34.9001226,137.18,137.14,0.033]
[1741454637381,34.9301226,137.19,137.14,0.033]
[1741454637572,0.03,137.19,137.15,34.9001226]
[1741454637882,0.03,137.19,137.15,40.7329226]
[1741454639680,34.9001226,137.18,137.14,12.3983]
[1741454639884,34.9001226,137.17,137.14,0.033]
[1741454640090,34.9001226,137.18,137.14,0.033]
[1741454640585,0.03,137.19,137.14,40.7663226]
[1741454640987,34.9001226,137.18,137.14,0.033]
[1741454641361,34.9301226,137.19,137.14,40.7663226]
[1741454641688,34.9301226,137.19,137.14,5.8663]
[1741454641987,34.9001226,137.18,137.14,0.033]
[1741454642295,34.9001226,137.16,137.14,0.033]
[1741454642583,34.9001226,137.17,137.14,0.033]
[1741454645506,0.03,137.19,137.16,34.9001226]
[1741454645978,0.03,137.19,137.15,34.9001226]
[1741454646584,0.03,137.19,137.15,40.7331226]
[1741454646774,34.9001226,137.18,137.14,0.033]
[1741454647384,0.03,137.19,137.14,60.7663226]
[1741454647693,0.03,137.19,137.15,34.9001226]
[1741454648588,0.03,137.19,137.15,40.7329226]
[1741454649292,0.03,137.19,137.15,27.66317934]
[1741454650001,0.03,137.19,137.17,21.83037934]
[1741454650201,0.03,137.19,137.18,21.83037934]
[1741454650892,0.03,137.19,137.18,27.66207934]
[1741454651271,0.03,137.19,137.16,8.38]
[1741454651476,0.03,137.19,137.16,5.8324]
[1741454651971,0.03,137.19,137.16,27.66277934]
[1741454652396,0.03,137.19,137.17,21.83037934]
[1741454653100,0.03,137.19,137.18,21.83037934]
[1741454654574,0.03,137.19,137.18,27.66207934]
[1741454654776,0.03,137.2,137.19,6.0247]
[1741454654998,0.03,137.2,137.19,27.85507934]
[1741454655513,0.0001,137.2,137.19,48.1634282]
[1741454656110,0.0001,137.2,137.19,69.99380754]
[1741454656292,0.03,137.28,137.24,21.83037934]
[1741454656615,0.03,137.28,137.25,21.83037934]
[1741454656983,0.03,137.28,137.24,41.83037934]
[1741454657475,0.03,137.28,137.24,20.0]
[1741454657682,21.83037934,137.27,137.24,20.0]
[1741454657882,21.83037934,137.26,137.21,21.83037934]
[1741454658094,21.83037934,137.27,137.22,21.83037934]
[1741454658485,21.86037934,137.28,137.22,21.83037934]
[1741454658705,0.03,137.28,137.24,21.83037934]
[1741454658903,21.86037934,137.28,137.23,21.83037934]
[1741454659312,0.03,137.28,137.24,21.83037934]
[1741454660596,0.03,137.28,137.24,27.65927934]
[1741454660934,0.03,137.28,137.26,21.83037934]
[1741454661536,0.03,137.28,137.24,30.09037934]
[1741454661698,0.03,137.28,137.25,20.0]
[1741454661699,21.86037934,137.28,137.25,20.0]
[1741454661898,21.86037934,137.28,137.24,8.26]
[1741454662125,21.83037934,137.27,137.24,8.26]
[1741454662352,21.83037934,137.26,137.2,5.8309]
[1741454662501,21.83037934,137.26,137.21,40.4800282]
[1741454662699,27.65867934,137.26,137.21,40.4800282]
[1741454662901,27.65867934,137.26,137.21,21.83037934]
[1741454663418,5.828,137.27,137.22,21.83037934]
[1741454663623,27.68797934,137.28,137.23,21.83037934]
[1741454663828,21.86037934,137.28,137.23,21.83037934]
[1741454664026,0.03,137.28,137.23,21.83037934]
[1741454664809,0.03,137.28,137.24,41.83037934]
[1741454665004,0.03,137.28,137.26,41.83037934]
[1741454665632,0.03,137.28,137.26,20.0]
[1741454666001,0.03,137.28,137.24,21.83037934]
[1741454666208,0.03,137.28,137.25,41.83037934]
[1741454666828,0.03,137.28,137.25,47.65877934]
[1741454667028,0.03,137.28,137.27,21.83037934]
[1741454667238,0.03,137.28,137.27,53.51145334]
[1741454669126,0.03,137.28,137.27,59.33935334]
[1741454670229,0.03,137.33,137.31,20.0]
[1741454670541,0.03,137.33,137.32,34.86180448]
[1741454671040,0.03,137.33,137.31,54.86180448]
[1741454671211,0.03,137.33,137.31,60.68790448]
[1741454671913,0.03,137.33,137.31,54.86180448]
[1741454672223,0.03,137.33,137.27,43.00180448]
[1741454672224,34.89180448,137.33,137.27,43.00180448]
[1741454672841,34.86180448,137.3,137.25,34.86180448]
[1741454673439,34.86180448,137.28,137.23,53.51145334]
[1741454673647,34.86180448,137.26,137.21,34.86180448]
[1741454674029,34.86180448,137.26,137.2,34.86180448]
[1741454674230,34.86180448,137.24,137.19,34.89480448]
[1741454675147,34.86180448,137.25,137.2,34.86180448]
[1741454676229,34.86180448,137.25,137.19,0.033]
[1741454676230,34.86180448,137.21,137.19,0.033]
[1741454676441,34.86180448,137.2,137.19,0.033]
[1741454677126,34.86180448,137.21,137.19,0.033]
[1741454677369,40.69230448,137.21,137.19,0.033]
[1741454677865,34.86180448,137.2,137.19,0.033]
[1741454678566,34.86180448,137.21,137.19,0.033]
[1741454678863,40.69140448,137.24,137.19,0.033]
[1741454679068,6.5262,137.25,137.19,34.89480448]
[1741454679069,34.86180448,137.25,137.19,34.89480448]
[1741454679375,34.86180448,137.24,137.19,34.89480448]
[1741454680041,34.86180448,137.26,137.2,34.86180448]
[1741454680237,40.68970448,137.27,137.22,54.86180448]
[1741454680437,5.8279,137.27,137.22,54.86180448]
[1741454680746,34.86180448,137.25,137.2,34.86180448]
[1741454680935,34.86180448,137.25,137.22,20.0]
[1741454681335,40.69080448,137.25,137.22,20.0]
[1741454682562,40.68970448,137.27,137.22,20.0]
[1741454682871,34.86180448,137.26,137.22,20.0]
[1741454683547,40.69050448,137.25,137.22,20.0]
[1741454683751,40.69050448,137.25,137.2,18.64964886]
[1741454683948,34.86180448,137.24,137.2,18.64964886]
[1741454684344,34.86180448,137.24,137.21,20.0]
[1741454684561,34.86180448,137.22,137.19,0.033]
[1741454685433,34.86180448,137.21,137.19,0.033]
[1741454685666,34.86180448,137.22,137.19,0.033]
[1741454686264,34.86180448,137.21,137.19,0.033]
[1741454686577,34.86180448,137.2,137.19,0.033]
[1741454687637,40.69270448,137.2,137.19,0.033]
[1741454691176,86.9906,137.24,137.19,0.033]
[1741454691177,1.5906,137.24,137.19,0.033]
[1741454691350,34.86180448,137.24,137.19,34.89480448]
[1741454691554,34.86180448,137.24,137.19,0.033]
[1741454691555,34.86180448,137.23,137.19,0.033]
[1741454692464,34.86180448,137.24,137.19,0.033]
[1741454692675,40.69100448,137.24,137.19,0.033]
[1741454693377,34.86180448,137.24,137.19,5.8642]
[1741454693562,34.86180448,137.24,137.19,34.89480448]
[1741454693974,40.69100448,137.24,137.19,0.033]
[1741454694470,34.86180448,137.23,137.19,0.033]
[1741454694872,34.86180448,137.22,137.19,0.033]
[1741454696853,40.69140448,137.23,137.19,0.033]
[1741454697459,34.86180448,137.23,137.19,0.033]
[1741454697875,34.86180448,137.25,137.19,34.89480448]
[1741454699190,34.86180448,137.25,137.2,5.8309]
[1741454699499,34.86180448,137.24,137.2,5.8309]
[1741454699699,34.86180448,137.24,137.19,34.89480448]
[1741454699871,34.86180448,137.24,137.19,40.72600448]
[1741454700393,34.86180448,137.23,137.19,0.033]
[1741454700767,81.3,137.27,137.21,34.86180448]
[1741454700969,34.86180448,137.24,137.19,34.89480448]
[1741454701191,34.86180448,137.23,137.19,0.033]
[1741454701382,21.82181982,137.23,137.19,0.033]
[1741454701890,21.82181982,137.2,137.19,0.033]
[1741454702570,82.9501,137.23,137.19,0.033]
[1741454702767,21.82181982,137.22,137.19,0.033]
[1741454703588,21.82181982,137.24,137.19,21.85481982]
[1741454703790,21.82181982,137.24,137.19,0.033]